bitfinex-derivatives/quotes_SOLF0:USTF0_20250514
["timestamp","ask_amount","ask_price","bid_price","bid_amount"]
[1747240795532,164.59589705,176.59,176.47,1.9356]
[1747240795737,133.66570353,176.6,176.47,1.9356]
[1747240796430,133.66570353,176.6,176.47,7.6013]
[1747240796632,1.0386262,176.59,176.47,7.6013]
[1747240796833,5.6644,176.52,176.47,7.6013]
[1747240797235,1.0386262,176.59,176.47,1.9356]
[1747240797535,5.6638,176.54,176.47,1.9356]
[1747240797735,1.0386262,176.59,176.49,5.6651]
[1747240798035,5.6642,176.52,176.47,1.9356]
[1747240798426,5.6642,176.52,176.47,7.6013]
[1747240798631,5.6647,176.51,176.47,7.6013]
[1747240799036,133.66570353,176.6,176.47,1.9356]
[1747240799234,5.6636,176.54,176.48,1.8318]
[1747240799432,133.66570353,176.6,176.48,1.8318]
[1747240800034,133.66570353,176.6,176.51,5.6645]
[1747240800238,133.66570353,176.6,176.48,1.8318]
[1747240800435,1.8127,176.63,176.49,18.06602839]
[1747240800631,5.6611,176.62,176.58,5.662]
[1747240800832,1.9108,176.68,176.49,18.06602839]
[1747240801034,5.6609,176.63,176.49,18.06602839]
[1747240801331,16.13042839,176.67,176.49,1.9356]
[1747240801837,16.13042839,176.63,176.49,1.9356]
[1747240802039,3.8767,176.62,176.48,1.8318]
[1747240802339,5.6639,176.53,176.49,5.6651]
[1747240802533,3.8767,176.62,176.48,1.8318]
[1747240802739,5.6644,176.52,176.48,1.8318]
[1747240803035,16.13042839,176.59,176.44,1.7972]
[1747240803238,26.20669629,176.57,176.44,1.7972]
[1747240803537,5.6652,176.49,176.45,5.6663]
[1747240803742,26.20669629,176.57,176.44,1.7972]
[1747240804036,26.20669629,176.53,176.4,3.7618]
[1747240804336,3.5536,176.52,176.4,3.7618]
[1747240804842,5.6663,176.46,176.41,5.6675]
[1747240805036,3.5536,176.52,176.4,3.7618]
[1747240805237,3.5536,176.52,176.27,11.344]
[1747240805433,5.6666,176.45,176.32,5.6989]
[1747240805628,3.5536,176.52,176.32,5.6989]
[1747240806036,5.6656,176.48,176.43,5.667]
[1747240806239,5.6656,176.48,176.32,5.6989]
[1747240806933,5.6652,176.49,176.32,17.0399]
[1747240807338,28.12579629,176.58,176.35,26.20669629]
[1747240807538,3.5577,176.57,176.39,26.20669629]
[1747240807735,3.5577,176.57,176.4,5.841]
[1747240807935,3.5577,176.57,176.47,5.6657]
[1747240808137,5.6647,176.51,176.47,5.6657]
[1747240808338,3.5577,176.57,176.47,5.6657]
[1747240808536,3.5577,176.57,176.46,5.666]
[1747240808739,3.5577,176.57,176.4,5.841]
[1747240809043,26.20669629,176.54,176.43,5.667]
[1747240809242,26.20669629,176.54,176.4,5.841]
[1747240809442,26.20669629,176.54,176.4,9.5733]
[1747240809642,26.20669629,176.5,176.4,1.9539]
[1747240809836,5.6655,176.48,176.4,1.9539]
[1747240810037,3.5577,176.57,176.4,1.9539]
[1747240810232,1.03765523,176.56,176.41,1.865]
[1747240810436,3.5577,176.57,176.42,1.8124]
[1747240810941,5.6639,176.53,176.42,1.8124]
[1747240811144,3.5577,176.57,176.47,5.6656]
[1747240811439,3.5577,176.57,176.42,1.8124]
[1747240812236,3.5577,176.57,176.5,5.6646]
[1747240812440,5.6638,176.54,176.5,5.6646]
[1747240812939,3.5577,176.57,176.42,1.8124]
[1747240813146,38.03,176.71,176.6,5.6616]
[1747240813339,7.6767,176.71,176.52,26.20669629]
[1747240813539,7.6767,176.71,176.53,5.3415]
[1747240813735,26.20669629,176.78,176.6,26.20669629]
[1747240813944,26.20669629,176.82,176.64,26.20669629]
[1747240814144,203.17007646,176.81,176.74,5.6571]
[1747240814341,197.51507646,176.81,176.65,5.3415]
[1747240814546,223.72177275,176.81,176.65,5.3415]
[1747240814943,26.20669629,176.81,176.65,5.3415]
[1747240815239,1.8795,176.78,176.58,26.20669629]
[1747240815449,29.95619629,176.77,176.59,3.597]
[1747240815642,30.99433286,176.77,176.59,3.597]
[1747240815945,1.03813657,176.76,176.59,1.7914]
[1747240816142,26.20669629,176.69,176.5,1.8056]
[1747240816345,5.566,176.68,176.51,1.8612]
[1747240816543,6.60413657,176.68,176.56,5.6626]
[1747240816745,6.60413657,176.68,176.51,1.8612]
[1747240816946,26.20669629,176.65,176.51,1.8612]
[1747240817148,26.20669629,176.65,176.4,26.20669629]
[1747240817343,26.20669629,176.65,176.41,5.6289]
[1747240817545,5.6629,176.56,176.41,5.6289]
[1747240817747,26.20669629,176.65,176.41,5.6289]
[1747240818146,26.20669629,176.61,176.41,5.6289]
[1747240818347,1.8031,176.6,176.41,5.6289]
[1747240818550,5.6639,176.53,176.41,5.6289]
[1747240818748,3.5798,176.59,176.41,5.6289]
[1747240819849,5.6604,176.64,176.58,5.6619]
[1747240820046,3.644,176.7,176.51,26.20669629]
[1747240820247,3.644,176.7,176.52,5.5593]
[1747240820950,1.03754671,176.69,176.52,5.5593]
[1747240821250,1.03754671,176.69,176.55,26.20669629]
[1747240821549,1.8031,176.75,176.55,26.20669629]
[1747240821752,5.5917,176.75,176.55,26.20669629]
[1747240822154,5.6573,176.74,176.59,26.20669629]
[1747240822449,5.5917,176.75,176.6,1.8814]
[1747240822849,1.8031,176.75,176.61,1.8053]
[1747240823250,3.7567,176.83,176.62,1.926]
[1747240823444,26.20669629,176.81,176.62,1.926]
[1747240823642,26.20669629,176.81,176.68,5.659]
[1747240823847,26.20669629,176.81,176.62,1.926]
[1747240824051,26.20669629,176.81,176.63,26.20669629]
[1747240824252,1.7839,176.82,176.67,26.20669629]
[1747240824754,5.6564,176.77,176.72,5.6578]
[1747240824951,26.20669629,176.81,176.63,26.20669629]
[1747240825451,26.20669629,176.81,176.62,1.926]
[1747240825750,5.6584,176.71,176.62,1.926]
[1747240825949,26.20669629,176.77,176.62,1.926]
[1747240827343,26.20669629,176.73,176.6,1.8814]
[1747240827543,3.5988,176.72,176.6,1.8814]
[1747240827742,5.6592,176.68,176.63,5.6604]
[1747240828047,5.4105,176.72,176.56,1.7707]
[1747240828242,26.20669629,176.69,176.59,5.6617]
[1747240828448,26.20669629,176.69,176.53,3.669]
[1747240828751,26.20669629,176.65,176.5,1.7707]
[1747240828950,26.20669629,176.61,176.47,1.7811]
[1747240829161,5.4296,176.6,176.41,1.7707]
[1747240829356,1.03726817,176.59,176.41,5.4397]
[1747240829551,5.4296,176.6,176.41,5.4397]
[1747240829854,26.20669629,176.57,176.41,5.4397]
[1747240830354,1.03679405,176.59,176.41,5.4397]
[1747240830554,5.6628,176.57,176.41,5.4397]
[1747240830856,5.4296,176.6,176.41,5.4397]
[1747240831351,26.20669629,176.57,176.41,5.4397]
[1747240831555,5.6641,176.53,176.47,5.6656]
[1747240831856,5.6641,176.53,176.41,5.4397]
[1747240832057,26.20669629,176.57,176.41,5.4397]
[1747240832454,5.6632,176.56,176.41,5.4397]
[1747240832854,5.4296,176.6,176.41,5.4397]
[1747240833357,26.20669629,176.57,176.41,5.4397]
[1747240834460,9.4296,176.6,176.41,5.4397]
[1747240834653,9.4296,176.6,176.44,26.20669629]
[1747240834955,4.0,176.69,176.48,26.20669629]
[1747240835159,5.525,176.66,176.48,26.20669629]
[1747240835359,1.03765809,176.65,176.48,26.20669629]
[1747240835960,5.525,176.66,176.48,26.20669629]
[1747240836260,5.6609,176.63,176.48,26.20669629]
[1747240836459,5.525,176.66,176.48,26.20669629]
[1747240836956,5.525,176.66,176.59,5.6617]
[1747240837160,5.525,176.66,176.48,26.20669629]
[1747240837357,5.525,176.66,176.53,5.6638]
[1747240837557,26.20669629,176.59,176.41,5.4397]
[1747240837753,26.20669629,176.59,176.41,3.669]
[1747240837958,26.20669629,176.59,176.47,5.6655]
[1747240838164,26.20669629,176.59,176.41,3.669]
[1747240838766,26.20669629,176.55,176.41,1.7811]
[1747240838968,5.6651,176.5,176.41,1.7811]
[1747240839267,5.4652,176.54,176.41,1.7811]
[1747240839463,11.1289,176.54,176.5,5.6647]
[1747240839671,5.4652,176.54,176.41,1.7811]
[1747240840577,5.6649,176.5,176.46,5.6659]
[1747240840768,5.4652,176.54,176.41,1.7811]
[1747240841069,11.129,176.54,176.5,5.6647]
[1747240841367,5.4652,176.54,176.41,1.7811]
[1747240842166,5.4652,176.54,176.37,28.10599629]
[1747240842368,5.6656,176.48,176.44,5.6667]
[1747240842564,5.4652,176.54,176.37,1.8993]
[1747240843067,26.20669629,176.52,176.36,1.8553]
[1747240843370,26.20669629,176.48,176.3,1.7783]
[1747240843860,5.6672,176.43,176.36,5.669]
[1747240844064,1.7579,176.42,176.3,1.7783]
[1747240844362,5.6681,176.4,176.35,5.6696]
[1747240844669,5.6681,176.4,176.28,3.567]
[1747240844870,3.832,176.41,176.28,3.567]
[1747240845070,5.6683,176.4,176.34,5.6698]
[1747240845272,3.832,176.41,176.23,1.7783]
[1747240845460,5.669,176.37,176.32,5.6704]
[1747240845664,26.20669629,176.4,176.23,3.5387]
[1747240845965,5.6704,176.33,176.22,1.9126]
[1747240846173,1.9275,176.32,176.16,3.64]
[1747240846368,3.7581,176.31,176.16,5.5526]
[1747240846864,3.7581,176.31,176.19,26.20669629]
[1747240847472,3.7581,176.31,176.16,5.5526]
[1747240848573,5.6713,176.3,176.16,5.5526]
[1747240848866,3.7581,176.31,176.16,5.5526]
[1747240849373,5.6715,176.3,176.25,5.6728]
[1747240849570,5.6715,176.3,176.16,5.5526]
[1747240849771,3.7581,176.31,176.16,5.5526]
[1747240850766,1.9275,176.32,176.16,5.5526]
[1747240851070,3.6967,176.39,176.21,26.20669629]
[1747240851269,1.8164,176.38,176.21,26.20669629]
[1747240852271,7.4852,176.38,176.33,5.67]
[1747240852465,1.8164,176.38,176.25,26.20669629]
[1747240852663,1.925,176.39,176.26,5.6135]
[1747240853267,5.6698,176.35,176.31,5.6707]
[1747240853668,26.20669629,176.37,176.18,26.20669629]
[1747240853870,5.6724,176.27,176.22,5.6736]
[1747240854169,26.20669629,176.33,176.16,3.7356]
[1747240854370,5.6721,176.28,176.23,5.6733]
[1747240854570,1.8075,176.32,176.16,3.7356]
[1747240855667,1.7975,176.34,176.16,3.7356]
[1747240856275,1.7975,176.34,176.18,26.20669629]
[1747240856576,1.7975,176.34,176.18,37.55669629]
[1747240857474,1.7975,176.34,176.3,5.6711]
[1747240857666,1.7975,176.34,176.16,3.7356]
[1747240857973,26.20669629,176.33,176.16,3.7356]
[1747240858174,26.20669629,176.33,176.23,5.6732]
[1747240858374,26.20669629,176.33,176.16,3.7356]
[1747240858570,5.6721,176.28,176.24,5.6731]
[1747240859170,5.6725,176.27,176.16,3.7356]
[1747240859376,26.20669629,176.33,176.16,3.7356]
[1747240859572,26.20669629,176.29,176.14,1.9033]
[1747240859776,26.20669629,176.29,176.08,82.11884703]
[1747240859777,1.8149,176.28,176.09,30.05059629]
[1747240859973,26.20669629,176.25,176.09,5.7218]
[1747240860174,3.6808,176.24,176.09,5.7218]
[1747240860469,3.6808,176.24,175.99,39.05643744]
[1747240860470,26.20669629,176.21,175.99,39.05643744]
[1747240860670,26.20669629,176.17,176.0,3.789]
[1747240860870,1.8149,176.16,176.0,3.789]
[1747240861273,1.8402,176.15,176.0,3.789]
[1747240861474,1.8406,176.14,176.0,3.789]
[1747240862276,1.8406,176.14,175.92,11.3665]
[1747240862277,26.20669629,176.13,175.94,26.20669629]
[1747240862480,26.20669629,176.13,175.95,1.9084]
[1747240863978,5.678,176.1,176.04,5.6793]
[1747240864174,26.20669629,176.13,176.04,5.6793]
[1747240864375,26.20669629,176.13,175.95,1.9084]
[1747240864784,26.20669629,176.08,175.95,1.9084]
[1747240865184,1.03311911,176.12,175.95,28.11509629]
[1747240865683,1.8406,176.14,175.99,26.20669629]
[1747240866181,1.8402,176.15,175.99,26.20669629]
[1747240866382,1.893,176.2,176.03,26.20669629]
[1747240866585,1.893,176.2,176.04,5.5624]
[1747240867182,1.8089,176.21,176.04,5.5624]
[1747240867478,1.8089,176.21,176.07,26.20669629]
[1747240867683,5.6755,176.17,176.12,5.6768]
[1747240867877,28.01559629,176.21,176.04,5.5624]
[1747240868074,1.8089,176.21,176.04,5.5624]
[1747240868276,5.6746,176.2,176.06,26.20669629]
[1747240869274,26.20669629,176.17,176.04,3.7405]
[1747240869475,1.8764,176.16,176.04,3.7405]
[1747240869680,1.8089,176.21,176.04,3.7405]
[1747240869877,5.6761,176.15,176.11,5.6771]
[1747240870084,1.8089,176.21,176.04,3.7405]
[1747240870582,5.6765,176.14,176.09,5.678]
[1747240870786,18.8389,176.21,176.04,3.7405]
[1747240871085,18.8389,176.21,176.07,5.6785]
[1747240871285,18.8389,176.21,175.99,1.8879]
[1747240871478,26.20669629,176.14,175.99,1.8879]
[1747240871783,5.6817,176.13,175.99,1.8879]
[1747240872485,5.678,176.09,176.05,5.6792]
[1747240872786,5.6817,176.13,175.99,1.8879]
[1747240873686,5.6777,176.1,176.06,5.6789]
[1747240873886,5.6817,176.13,175.99,1.8879]
[1747240874180,5.6778,176.1,176.06,5.6789]
[1747240874381,5.6817,176.13,175.99,1.8879]
[1747240874578,26.20669629,176.1,175.97,1.8111]
[1747240875086,5.6787,176.07,176.03,5.6797]
[1747240875285,26.20669629,176.1,176.03,5.6797]
[1747240875487,26.20669629,176.1,175.96,1.9516]
[1747240877383,26.20669629,176.1,175.88,1.8202]
[1747240877384,26.20669629,176.1,175.88,28.02689629]
[1747240877691,5.6793,176.05,176.01,5.6805]
[1747240877888,31.88839629,176.13,175.91,1.8163]
[1747240878282,31.88839629,176.13,176.01,5.6803]
[1747240878483,1.03233691,176.12,175.91,1.8163]
[1747240878789,1.03233691,176.12,176.02,5.68]
[1747240879387,1.03233691,176.12,176.01,5.6805]
[1747240879587,1.03233691,176.12,175.92,1.8443]
[1747240879786,5.6802,176.03,175.98,5.6812]
[1747240880089,5.6802,176.03,175.92,1.8443]
[1747240880290,5.6797,176.04,176.0,5.6809]
[1747240880481,26.20669629,176.08,175.92,1.8443]
[1747240880883,31.88839629,176.13,175.92,1.8443]
[1747240881086,5.679,176.06,175.92,1.8443]
[1747240881282,31.88839629,176.13,175.92,1.8443]
[1747240881487,26.20669629,176.08,175.92,1.8443]
[1747240881889,26.20669629,176.08,175.91,1.8163]
[1747240882188,26.20669629,176.04,175.83,26.20669629]
[1747240882495,3.71,176.03,175.84,1.8036]
[1747240882688,26.20669629,176.0,175.84,1.8036]
[1747240883296,5.6836,175.92,175.84,1.8036]
[1747240883493,26.20669629,176.0,175.84,1.8036]
[1747240884294,5.6831,175.94,175.84,1.8036]
[1747240884496,26.20669629,176.0,175.84,1.8036]
[1747240885191,5.4743,176.03,175.84,1.8036]
[1747240885389,5.6806,176.01,175.85,11.3715]
[1747240885590,5.4743,176.03,175.85,11.3715]
[1747240885790,5.4743,176.03,175.84,1.8036]
[1747240886100,5.6805,176.02,175.86,11.3707]
[1747240886391,5.4743,176.03,175.87,26.20669629]
[1747240886588,5.6789,176.07,175.91,26.20669629]
[1747240886788,26.20669629,176.1,175.92,5.7165]
[1747240887093,26.20669629,176.1,175.93,11.366]
[1747240887300,26.20669629,176.1,175.92,5.7165]
[1747240887495,1.7895,176.12,175.95,26.20669629]
[1747240887696,1.7895,176.12,176.09,5.6778]
[1747240887994,1.7895,176.12,175.99,26.20669629]
[1747240888299,1.8355,176.15,176.12,5.6769]
[1747240888794,1.8355,176.15,176.0,1.9553]
[1747240888998,1.7737,176.16,176.0,1.9553]
[1747240889999,5.6771,176.12,176.0,1.9553]
[1747240890399,1.7737,176.16,176.0,1.9553]
[1747240891200,5.6779,176.1,176.05,5.6791]
[1747240891697,1.7737,176.16,176.0,1.9553]
[1747240892396,26.20669629,176.1,176.0,1.9553]
[1747240892593,1.9321,176.09,175.94,1.7915]
[1747240892794,5.6792,176.06,175.94,1.7915]
[1747240892993,1.9321,176.09,175.94,1.7915]
[1747240893192,26.20669629,176.1,175.94,1.7915]
[1747240893193,26.20669629,176.14,175.94,1.7915]
[1747240893393,5.6775,176.11,175.97,26.20669629]
[1747240893701,26.20669629,176.14,175.97,26.20669629]
[1747240893901,5.6777,176.1,175.97,26.20669629]
[1747240894103,26.20669629,176.14,175.97,26.20669629]
[1747240894500,5.6776,176.11,176.06,5.6787]
[1747240894701,26.20669629,176.14,175.97,26.20669629]
[1747240895101,1.7812,176.15,175.97,26.20669629]
[1747240895402,1.7812,176.15,176.01,26.20669629]
[1747240895601,1.7812,176.15,176.12,5.6768]
[1747240895997,1.7737,176.16,176.02,5.5276]
[1747240896202,5.6748,176.2,176.16,5.6755]
[1747240896402,5.6748,176.2,176.05,26.20669629]
[1747240896704,5.6762,176.15,176.05,26.20669629]
[1747240897402,1.7666,176.22,176.05,26.20669629]
[1747240898002,5.6742,176.21,176.05,26.20669629]
[1747240898399,5.6742,176.21,176.17,5.6753]
[1747240898596,1.7666,176.22,176.09,26.20669629]
[1747240898898,1.8647,176.27,176.1,1.8602]
[1747240899095,5.6726,176.26,176.13,26.20669629]
[1747240899604,5.6716,176.29,176.14,3.7419]
[1747240899803,3.67,176.3,176.14,3.7419]
[1747240900299,3.67,176.3,176.17,26.20669629]
[1747240900505,1.9171,176.33,176.18,1.8602]
[1747240900706,1.9171,176.33,176.21,26.20669629]
[1747240901406,3.67,176.37,176.21,26.20669629]
[1747240901702,3.67,176.37,176.33,5.6702]
[1747240902008,3.67,176.37,176.21,26.20669629]
[1747240902304,3.67,176.37,176.25,26.20669629]
[1747240902805,5.6695,176.36,176.31,5.6708]
[1747240903105,3.67,176.37,176.23,26.20669629]
[1747240903299,1.8923,176.37,176.19,26.20669629]
[1747240903504,1.9212,176.36,176.18,1.8602]
[1747240903806,5.6726,176.26,176.18,1.8602]
[1747240904009,26.20669629,176.31,176.14,3.7419]
[1747240904205,1.9338,176.3,176.14,3.7419]
[1747240904400,5.6735,176.24,176.14,3.7419]
[1747240904606,1.9338,176.3,176.14,3.7419]
[1747240905302,26.20669629,176.27,176.14,1.9118]
[1747240905507,5.6746,176.2,176.15,5.676]
[1747240905814,1.8239,176.26,176.12,1.9284]
[1747240906000,5.6754,176.17,176.12,1.9284]
[1747240906309,1.9243,176.25,176.07,26.20669629]
[1747240906510,26.20669629,176.23,176.12,5.6768]
[1747240906715,26.20669629,176.23,176.04,1.9284]
[1747240907612,26.20669629,176.23,176.1,5.6775]
[1747240907815,26.20669629,176.23,176.04,1.9284]
[1747240908810,26.20669629,176.19,176.04,1.9284]
[1747240909111,1.8327,176.18,176.04,1.9284]
[1747240909813,1.8327,176.18,176.05,5.6792]
[1747240910013,1.8327,176.18,175.99,26.20669629]
[1747240910512,1.8327,176.18,176.1,5.6776]
[1747240910712,1.8327,176.18,175.99,26.20669629]
[1747240911615,1.8327,176.18,176.0,11.3618]
[1747240911908,5.6762,176.15,176.1,5.6774]
[1747240912111,1.8327,176.18,176.0,11.3618]
[1747240912514,5.676,176.16,176.11,5.6771]
[1747240912714,1.8327,176.18,176.11,5.6771]
[1747240912914,5.6771,176.12,176.09,5.678]
[1747240913215,1.8327,176.18,175.97,3.6684]
[1747240913404,5.6782,176.09,176.04,5.6793]
[1747240913609,5.6782,176.09,175.97,3.6684]
[1747240913811,3.6565,176.14,175.97,3.6684]
[1747240914515,5.6772,176.12,176.07,5.6784]
[1747240914715,5.6772,176.12,175.97,3.6684]
[1747240915114,3.6565,176.14,175.97,3.6684]
[1747240915917,3.6565,176.14,176.01,26.20669629]
[1747240916217,3.6565,176.14,176.13,5.6767]
[1747240916719,1.8327,176.18,176.14,5.6763]
[1747240916918,1.8327,176.18,176.02,11.3603]
[1747240917417,1.8327,176.18,176.01,26.20669629]
[1747240917712,1.8327,176.18,176.05,26.20669629]
[1747240918417,1.8327,176.18,176.01,26.20669629]
[1747240918814,1.8327,176.18,176.14,5.6762]
[1747240919518,7.508,176.18,176.14,5.6762]
[1747240919819,1.8327,176.18,176.05,26.20669629]
[1747240920022,1.8327,176.18,176.06,3.7707]
[1747240920319,3.7478,176.25,176.2,5.6744]
[1747240920520,3.7478,176.25,176.13,26.20669629]
[1747240920720,1.8707,176.3,176.14,1.9084]
[1747240921018,5.6721,176.28,176.14,1.9084]
[1747240921219,3.7114,176.3,176.14,1.9084]
[1747240921418,26.20669629,176.27,176.07,1.8278]
[1747240921613,26.20669629,176.27,176.08,1.9084]
[1747240921817,5.6736,176.23,176.08,1.9084]
[1747240922118,3.7114,176.3,176.09,26.20669629]
[1747240923216,1.03274049,176.29,176.09,26.20669629]
[1747240923519,1.03274049,176.29,176.08,1.9084]
[1747240923520,3.7114,176.3,176.13,26.20669629]
[1747240923911,3.7114,176.3,176.17,26.20669629]
[1747240924112,1.8407,176.3,176.18,3.5717]
[1747240924423,1.8027,176.33,176.21,26.20669629]
[1747240924924,5.6687,176.38,176.25,26.20669629]
[1747240925125,3.7701,176.39,176.25,26.20669629]
[1747240925822,1.8818,176.39,176.25,26.20669629]
[1747240926017,1.8287,176.43,176.25,26.20669629]
[1747240926320,1.8287,176.43,176.29,26.20669629]
[1747240926523,5.6674,176.42,176.3,3.7264]
[1747240926825,1.8287,176.43,176.3,3.7264]
[1747240927122,5.668,176.41,176.36,5.6691]
[1747240927819,5.668,176.41,176.37,5.6689]
[1747240928118,4.0,176.52,176.33,26.20669629]
[1747240928317,9.6401,176.52,176.33,26.20669629]
[1747240928714,1.03372538,176.51,176.33,26.20669629]
[1747240929020,5.6659,176.47,176.33,26.20669629]
[1747240929220,9.6401,176.52,176.31,26.20669629]
[1747240930315,5.6401,176.52,176.36,26.20669629]
[1747240930624,5.6649,176.5,176.44,5.6665]
[1747240930815,5.6649,176.5,176.36,26.20669629]
[1747240931015,5.6401,176.52,176.36,26.20669629]
[1747240932216,30.20669629,176.58,176.4,26.20669629]
[1747240932416,1.8928,176.59,176.44,26.20669629]
[1747240932820,5.6627,176.57,176.44,26.20669629]
[1747240933020,1.8928,176.59,176.44,26.20669629]
[1747240933417,1.8831,176.6,176.44,26.20669629]
[1747240933618,1.8928,176.63,176.48,26.20669629]
[1747240934024,5.6614,176.61,176.48,26.20669629]
[1747240934226,1.8928,176.63,176.48,26.20669629]
[1747240934427,1.8557,176.67,176.48,26.20669629]
[1747240934627,3.7927,176.67,176.48,26.20669629]
[1747240935230,26.20669629,176.64,176.41,5.3736]
[1747240936228,26.20669629,176.64,176.54,5.6633]
[1747240936427,26.20669629,176.64,176.46,26.20669629]
[1747240936629,5.6623,176.58,176.46,26.20669629]
[1747240936833,26.20669629,176.6,176.41,5.3736]
[1747240937027,1.937,176.59,176.41,5.3736]
[1747240937225,5.6633,176.55,176.49,5.6648]
[1747240937427,1.937,176.59,176.41,5.3736]
[1747240937730,5.6638,176.54,176.5,5.6648]
[1747240937930,1.937,176.59,176.41,5.3736]
[1747240938137,26.20669629,176.57,176.41,5.3736]
[1747240938336,26.20669629,176.53,176.36,26.20669629]
[1747240938535,26.20669629,176.53,176.32,26.20669629]
[1747240939037,26.20669629,176.53,176.36,26.20669629]
[1747240939231,26.20669629,176.53,176.37,3.8352]
[1747240939838,5.6655,176.48,176.41,5.6675]
[1747240940039,26.20669629,176.53,176.37,3.8352]
[1747240940540,26.20669629,176.49,176.28,27.97359629]
[1747240940736,1.815,176.48,176.29,1.8869]
[1747240941641,1.815,176.48,176.32,26.20669629]
[1747240942839,1.815,176.48,176.45,5.6663]
[1747240943134,1.815,176.48,176.32,26.20669629]
[1747240943541,1.815,176.48,176.3,11.3425]
[1747240943941,1.815,176.48,176.29,1.8869]
[1747240944239,26.20669629,176.45,176.29,1.8869]
[1747240944440,5.6667,176.45,176.4,5.6678]
[1747240944636,1.815,176.48,176.29,1.8869]
[1747240945038,5.6668,176.44,176.29,1.8869]
[1747240945234,1.815,176.48,176.32,26.20669629]
[1747240945941,5.6662,176.46,176.42,5.6674]
[1747240946442,1.815,176.48,176.32,26.20669629]
[1747240947038,26.20669629,176.45,176.29,1.8869]
[1747240947245,26.20669629,176.41,176.18,21.9918297]
[1747240947446,26.20669629,176.41,176.23,5.4671]
[1747240947639,5.6701,176.34,176.29,5.6713]
[1747240947835,26.20669629,176.41,176.23,5.4671]
[1747240948143,5.6706,176.32,176.27,5.6721]
[1747240948343,26.20669629,176.37,176.23,5.4671]
[1747240948543,1.873,176.36,176.23,5.4671]
[1747240948744,1.873,176.36,176.27,5.6721]
[1747240949043,1.873,176.36,176.23,5.4671]
[1747240949645,1.873,176.36,176.28,5.6718]
[1747240950040,1.873,176.36,176.18,11.3502]
[1747240950246,26.20669629,176.33,176.16,5.6053]
[1747240950436,5.6718,176.29,176.16,5.6053]
[1747240950641,3.6557,176.32,176.16,5.6053]
[1747240951644,5.6716,176.29,176.16,5.6053]
[1747240951845,3.6557,176.32,176.16,5.6053]
[1747240953346,9.3263,176.32,176.28,5.6717]
[1747240953644,3.6557,176.32,176.17,26.20669629]
[1747240953837,3.6557,176.32,176.16,5.6053]
[1747240954236,28.07969629,176.36,176.16,5.6053]
[1747240954440,1.873,176.36,176.21,26.20669629]
[1747240954637,3.7027,176.38,176.25,26.20669629]
[1747240954837,3.7027,176.38,176.26,5.6959]
[1747240956045,5.6697,176.35,176.3,5.671]
[1747240956344,3.7027,176.38,176.26,5.6959]
[1747240956649,5.6698,176.35,176.31,5.6708]
[1747240956848,3.7027,176.38,176.26,5.6959]
[1747240957057,3.7027,176.38,176.26,1.9452]
[1747240957249,5.6712,176.31,176.17,31.81129629]
[1747240957548,1.03307276,176.37,176.17,31.81129629]
[1747240957748,5.6707,176.32,176.28,5.6719]
[1747240958050,3.7027,176.38,176.17,31.81129629]
[1747240958245,5.6698,176.35,176.31,5.6706]
[1747240958446,3.7027,176.38,176.21,26.20669629]
[1747240959950,5.6697,176.35,176.21,26.20669629]
[1747240960152,3.7027,176.38,176.21,26.20669629]
[1747240960350,5.6703,176.33,176.28,5.6718]
[1747240960651,3.7027,176.38,176.28,5.6718]
[1747240960847,5.6697,176.35,176.32,5.6705]
[1747240961049,3.7027,176.38,176.21,26.20669629]
[1747240961448,5.6688,176.38,176.34,5.6699]
[1747240961849,1.8776,176.41,176.26,1.9242]
[1747240962347,1.8776,176.41,176.27,3.6055]
[1747240962552,3.6757,176.44,176.27,3.6055]
[1747240962750,3.6757,176.44,176.29,26.20669629]
[1747240963550,1.9408,176.47,176.29,26.20669629]